bitfinex/quotes_ETHUSD_20250328
["timestamp","ask_amount","ask_price","bid_price","bid_amount"]
[1743190357998,3.0,1884.7,1884.4,5.30655]
[1743190358778,8.30594,1884.7,1884.4,5.30655]
[1743190358978,8.30594,1884.7,1884.3,5.30695]
[1743190359384,3.0,1884.7,1884.3,5.30684]
[1743190359568,8.30589,1884.7,1884.4,5.30662]
[1743190359905,8.30589,1884.7,1884.3,5.30697]
[1743190360479,8.30589,1884.7,1884.3,10.61381]
[1743190360677,13.61201,1884.7,1884.3,5.30684]
[1743190360882,8.30589,1884.7,1884.3,5.30684]
[1743190361081,13.61191,1884.7,1884.3,5.30684]
[1743190361296,5.30645,1884.5,1884.2,5.30729]
[1743190363605,5.30673,1884.4,1884.1,10.37047]
[1743190363818,5.30701,1884.3,1884.1,0.05]
[1743190364101,5.837991,1884.2,1884.1,0.05]
[1743190365782,0.530701,1884.2,1884.1,0.05]
[1743190366700,5.837991,1884.2,1884.1,0.05]
[1743190368585,12.6476909,1884.2,1884.1,0.05]
[1743190375203,6.06,1884.3,1884.1,5.35737]
[1743190375501,6.06,1884.3,1884.1,0.05]
[1743190375906,23.4835599,1884.4,1884.1,0.05]
[1743190376106,19.67386,1884.4,1884.1,0.05]
[1743190376279,14.36685,1884.4,1884.1,0.05]
[1743190377209,5.30704,1884.3,1884.1,0.05]
[1743190379105,5.30729,1884.2,1884.1,0.05]
[1743190379908,5.3071,1884.3,1884.1,0.05]
[1743190381626,5.30729,1884.2,1884.1,0.05]
[1743190381958,6.10059,1884.2,1884.1,0.05]
[1743190382982,11.3671,1884.3,1884.1,0.05]
[1743190383213,6.06,1884.3,1884.1,0.05]
[1743190383397,6.06,1884.3,1884.1,5.35756]
[1743190383591,9.06,1884.3,1884.2,0.8284]
[1743190383907,9.06,1884.3,1884.1,0.8784]
[1743190384415,9.06,1884.3,1884.1,6.18593]
[1743190384708,9.06,1884.3,1884.1,0.8784]
[1743190384916,14.36702,1884.3,1884.1,0.8784]
[1743190385408,9.06,1884.3,1884.1,6.1858]
[1743190387102,9.06,1884.3,1884.1,0.8784]
[1743190388425,14.3671,1884.3,1884.1,0.05]
[1743190388613,19.67429,1884.3,1884.1,0.05]
[1743190389728,14.3671,1884.3,1884.1,0.05]
[1743190389928,12.9313899,1884.2,1884.1,0.05]
[1743190393397,18.9913899,1884.2,1884.1,0.05]
[1743190394216,15.18169,1884.2,1884.1,0.05]
[1743190394418,14.36729,1884.2,1884.1,0.05]
[1743190395120,9.06,1884.2,1884.1,0.05]
[1743190395446,6.06,1884.2,1884.1,0.8009]
[1743190395645,6.06,1884.2,1884.1,6.10847]
[1743190397251,6.06,1884.2,1884.1,0.8009]
[1743190399049,11.36729,1884.2,1884.1,0.05]
[1743190399661,15.1769899,1884.2,1884.1,0.05]
[1743190401736,19.0013899,1884.2,1884.1,0.05]
[1743190402162,19.5513899,1884.2,1884.1,1e-05]
[1743190403328,23.3610898,1884.2,1884.1,1e-05]
[1743190403665,19.5513899,1884.2,1884.1,1e-05]
[1743190404386,23.3610898,1884.2,1884.1,1e-05]
[1743190404596,19.5513899,1884.2,1884.1,1e-05]
[1743190405899,19.0013899,1884.2,1884.1,1e-05]
[1743190406055,16.0013899,1884.2,1884.1,1e-05]
[1743190406470,19.0013899,1884.2,1884.1,1e-05]
[1743190409493,19.5513899,1884.2,1884.1,1e-05]
[1743190424443,25.1503899,1884.2,1884.1,1e-05]
[1743190424825,19.5513899,1884.2,1884.1,1e-05]
[1743190425349,24.5653899,1884.2,1884.1,1e-05]
[1743190425746,24.0153899,1884.2,1884.1,1e-05]
[1743190425951,23.1909899,1884.2,1884.1,1e-05]
[1743190426263,23.7409899,1884.2,1884.1,1e-05]
[1743190427374,18.1769899,1884.2,1884.1,1e-05]
[1743190435482,15.1769899,1884.2,1884.1,1e-05]
[1743190435691,18.1769899,1884.2,1884.1,1e-05]
[1743190437443,14.36729,1884.2,1884.1,1e-05]
[1743190438746,14.91729,1884.2,1884.1,1e-05]
[1743190439063,8.85813,1883.9,1883.5,0.8067]
[1743190439250,9.1186799,1883.6,1883.5,0.8067]
[1743190439455,10.61942,1883.4,1883.1,5.8197]
[1743190439684,5.3097,1883.4,1883.1,5.8197]
[1743190439862,5.3097,1883.4,1883.2,0.8067]
[1743190442051,5.30982,1883.3,1883.2,0.8067]
[1743190442266,9.1195199,1883.3,1883.2,0.8067]
[1743190443409,15.1795099,1883.3,1883.2,0.8067]
[1743190443779,5.31039,1883.2,1883.0,0.7578]
[1743190443977,5.31044,1883.1,1883.0,0.7578]
[1743190452119,5.31012,1883.2,1883.0,0.7578]
[1743190452320,3.0,1883.2,1883.0,0.7578]
[1743190452521,3.0,1883.2,1883.1,0.7727]
[1743190453031,8.31011,1883.2,1883.1,0.7727]
[1743190454917,3.0,1883.2,1883.1,0.7727]
[1743190455441,8.31011,1883.2,1883.1,0.7727]
[1743190457262,5.3107,1883.0,1882.7,5.58853774]
[1743190457555,5.3107,1883.0,1882.8,5.7659]
[1743190459659,8.31015,1883.2,1882.8,10.3251]
[1743190459850,8.31015,1883.2,1883.0,0.7986]
[1743190463559,3.0,1883.2,1883.0,6.10927]
[1743190463855,3.0,1883.2,1883.0,0.7986]
[1743190464159,3.0,1883.2,1883.0,6.10919]
[1743190464463,3.0,1883.2,1883.0,0.7986]
[1743190464658,8.31023,1883.2,1883.0,0.7986]
[1743190465861,5.31039,1883.1,1883.0,0.7986]
[1743190466551,8.31023,1883.2,1883.0,0.7986]
[1743190467658,5.31039,1883.1,1883.0,0.7986]
[1743190468473,5.31039,1883.1,1882.8,0.786]
[1743190469059,5.31039,1883.1,1882.8,6.09719]
[1743190471263,13.62059,1883.2,1882.8,6.09719]
[1743190472159,10.62059,1883.2,1882.8,6.09719]
[1743190475482,10.62053,1883.2,1882.8,6.09719]
[1743190476068,5.31084,1883.0,1882.7,5.014]
[1743190476279,3.0,1882.9,1882.7,5.014]
[1743190476489,3.0,1883.2,1883.0,5.31056]
[1743190476643,6.05999,1883.3,1883.1,1.317956]
[1743190476842,6.05999,1883.3,1883.1,0.7869]
[1743190477261,6.05999,1883.3,1883.1,6.09725]
[1743190478174,6.05999,1883.3,1883.1,0.7869]
[1743190479977,11.36995,1883.3,1883.1,0.7869]
[1743190480479,5.31021,1883.2,1882.9,0.8049]
[1743190480841,11.36987,1883.3,1882.9,6.11585]
[1743190481780,16.67991,1883.3,1882.9,6.11585]
[1743190481980,11.36987,1883.3,1882.9,6.11574]
[1743190482392,16.67988,1883.3,1882.9,6.11574]
[1743190482677,11.36987,1883.3,1882.9,11.42658]
[1743190482849,11.36987,1883.3,1882.9,6.11574]
[1743190483250,16.67989,1883.3,1882.9,6.11574]
[1743190483449,11.36987,1883.3,1882.9,6.11574]
[1743190483661,16.67989,1883.3,1882.9,6.11574]
[1743190485386,11.36987,1883.3,1882.9,6.11574]
[1743190487328,6.05999,1883.3,1883.0,5.31065]
[1743190487531,6.05999,1883.3,1883.1,0.8132]
[1743190488225,11.36985,1883.3,1883.1,0.8132]
[1743190488429,5.31026,1883.2,1882.9,0.8315]
[1743190488633,10.62054,1883.2,1882.9,0.8315]
[1743190488937,5.31026,1883.2,1882.9,0.8315]
[1743190491330,5.31067,1883.0,1882.7,0.8199]
[1743190491688,6.13337,1883.0,1882.7,0.8199]
[1743190492003,5.31105,1882.9,1882.5,6.13202]
[1743190492429,5.31105,1882.9,1882.5,11.44398]
[1743190492630,3.0,1882.9,1882.6,5.3117]
[1743190493506,8.31112,1882.9,1882.5,11.44391]
[1743190495253,8.31112,1882.9,1882.5,6.13199]
[1743190495414,8.31112,1882.9,1882.6,14.5]
[1743190495951,8.31112,1882.9,1882.6,19.81179]
[1743190496108,14.37111,1882.9,1882.5,10.32489]
[1743190496315,14.37111,1882.9,1882.6,0.8006]
[1743190497558,19.68228,1882.9,1882.6,0.8006]
[1743190498247,5.31128,1882.8,1882.6,0.8006]
[1743190498434,5.842788,1882.7,1882.4,5.8170778]
[1743190498751,7.3408279,1882.7,1882.4,0.0196778]
[1743190498954,3.0,1882.5,1882.4,0.0196778]
[1743190499114,14.37207,1882.5,1882.4,0.0196778]
[1743190500122,18.1817699,1882.5,1882.4,0.0196778]
[1743190501160,18.9483699,1882.5,1882.4,0.0196778]
[1743190502356,19.4983699,1882.5,1882.4,0.0196778]
[1743190503817,23.3080698,1882.5,1882.4,7.8e-06]
[1743190504520,19.4983699,1882.5,1882.4,7.8e-06]
[1743190506847,23.3080698,1882.5,1882.4,7.8e-06]
[1743190507021,19.4983699,1882.5,1882.4,7.8e-06]
[1743190507223,23.3080698,1882.5,1882.4,7.8e-06]
[1743190507440,19.4983699,1882.5,1882.4,7.8e-06]
[1743190507870,6.07723,1882.2,1882.1,0.05]
[1743190508188,12.8869299,1882.2,1882.1,0.05]
[1743190509180,8.31293,1882.2,1882.1,0.05]
[1743190511388,12.1226299,1882.2,1882.1,0.05]
[1743190511679,12.8774299,1882.2,1882.1,0.05]
[1743190513646,19.4874121,1882.2,1882.1,0.05]
[1743190516693,15.6777122,1882.2,1882.1,0.05]
[1743190516874,19.4874121,1882.2,1882.1,0.05]
[1743190517399,19.4874121,1882.2,1882.1,1e-05]
[1743190517970,24.5024121,1882.2,1882.1,1e-05]
[1743190518605,24.5024121,1882.2,1881.1,42.616]
[1743190518606,5.3149,1881.5,1881.1,42.616]
[1743190518898,5.31599,1881.2,1881.1,0.8065]
[1743190519208,5.31603,1881.1,1880.8,0.8065]
[1743190519393,11.3760122,1881.1,1880.8,0.8065]
[1743190519570,5.31634,1881.0,1880.8,0.8065]
[1743190519764,5.72135337,1881.0,1880.8,0.8065]
[1743190520670,5.72131337,1881.0,1880.8,0.8065]
[1743190521296,5.3166,1880.9,1880.8,0.8065]
[1743190521598,5.31689,1880.8,1880.7,0.7823]
[1743190521815,5.72137337,1881.0,1880.7,0.7823]
[1743190521964,11.3762322,1881.1,1880.8,0.7823]
[1743190522396,11.77411229,1881.1,1880.8,0.7823]
[1743190522997,17.09040229,1881.1,1880.8,0.7823]
[1743190523408,6.0599822,1881.1,1880.7,1.111464]
[1743190523575,6.0599822,1881.1,1880.9,5.31636]
[1743190523907,6.0599822,1881.1,1881.0,11.12622]
[1743190524410,6.0599822,1881.4,1881.2,6.12549]
[1743190524604,6.0599822,1881.4,1881.2,0.8098]
[1743190525813,6.0599822,1881.4,1881.2,5.31565]
[1743190526025,6.0599822,1881.4,1881.3,0.8098]
[1743190526879,6.0599822,1881.4,1881.3,6.12527]
[1743190527110,6.0599822,1881.4,1881.3,7.269345]
[1743190527621,6.0599822,1882.0,1881.9,6.07547]
[1743190527800,6.0599822,1882.0,1881.9,11.09147]
[1743190528422,3.0,1882.3,1882.0,5.31347]
[1743190528588,8.3127,1882.3,1881.9,5.7777]
[1743190528919,5.31314,1882.2,1881.9,5.7777]
[1743190529618,9.1223999,1882.3,1881.9,5.7777]
[1743190529819,5.31294,1882.2,1881.9,5.7777]
[1743190530333,8.3127,1882.3,1881.9,5.7777]
[1743190530817,8.3127,1882.3,1881.9,11.09135]
[1743190532220,13.62557,1882.3,1881.9,11.09135]
[1743190532525,8.3127,1882.3,1881.9,11.09135]
[1743190532820,8.3127,1882.3,1881.9,12.731873]
[1743190533602,3.0,1882.3,1881.9,12.731873]
[1743190533925,8.31275,1882.3,1881.9,12.731873]
[1743190534724,3.0,1882.3,1881.9,12.731873]
[1743190535019,3.0,1882.3,1882.1,5.31305]
[1743190535207,6.0599822,1882.5,1882.2,6.603165]
[1743190535611,11.3721622,1882.5,1882.2,0.759]
[1743190535820,6.0599822,1882.5,1882.2,0.759]
[1743190536024,5.31264,1882.3,1882.0,0.7532]
[1743190536230,5.31247,1882.4,1882.0,6.06665]
[1743190536926,10.62505,1882.4,1882.0,6.06665]
[1743190537123,5.31247,1882.4,1882.0,6.06665]
[1743190540133,5.31268,1882.3,1882.0,0.7532]
[1743190540631,11.3724122,1882.4,1882.0,6.06665]
[1743190541531,11.3724122,1882.4,1882.0,6.06653]
[1743190541829,6.0599822,1882.4,1882.1,5.313]
[1743190542696,11.3723522,1882.4,1882.1,5.313]
[1743190542895,16.6849522,1882.4,1882.0,6.06663]
[1743190543142,11.3723522,1882.4,1882.0,6.06663]
[1743190543350,6.0599822,1882.4,1882.0,6.06663]
[1743190543671,11.3724522,1882.4,1882.0,11.37998]
[1743190543800,3.0,1882.3,1882.0,0.7532]
[1743190544133,3.0,1882.3,1881.8,5.31397]
[1743190544134,5.31374,1882.0,1881.6,5.31459]
[1743190544307,11.3737222,1882.0,1881.6,11.09889]
[1743190546750,8.31434,1881.7,1881.6,5.014]
[1743190547045,3.0,1881.7,1881.4,6.08693]
[1743190547657,3.0,1881.7,1881.4,0.8194]
[1743190547829,3.0,1881.7,1881.5,5.31468]
[1743190548167,6.0599822,1881.8,1881.7,0.8194]
[1743190548373,6.0599822,1881.8,1881.7,5.31434]
[1743190548656,6.0599822,1881.8,1881.7,11.14874]
[1743190548953,6.0599822,1882.2,1882.1,6.08311]
[1743190549922,6.0599822,1882.2,1882.1,0.7699]
[1743190550129,6.0599822,1882.2,1882.1,6.08311]
[1743190555772,6.0599822,1882.2,1882.1,11.09711]
[1743190556475,6.0599822,1882.2,1882.1,12.738157]
[1743190560165,6.0599822,1882.7,1882.5,5.31202]
[1743190560479,6.0599822,1882.7,1882.6,5.3118]
[1743190560772,6.0599822,1882.7,1882.5,10.326]
[1743190561363,6.0599822,1882.7,1882.5,5.014]
[1743190561672,11.97756042,1882.7,1882.5,5.014]
[1743190562183,6.66598042,1882.7,1882.5,5.014]
[1743190562496,6.0599822,1882.7,1882.5,5.014]
[1743190562703,6.0599822,1882.7,1882.6,6.0694]
[1743190562869,6.0599822,1883.0,1882.7,5.31128]
[1743190563063,6.0599822,1883.0,1882.8,5.31122]
[1743190563377,6.0599822,1883.0,1882.7,5.31144]
[1743190563576,6.0599822,1883.0,1882.7,10.62278]
[1743190563779,6.0599822,1883.0,1882.8,5.31123]
[1743190563987,6.0599822,1883.0,1882.8,5.31106]
[1743190564195,6.0599822,1883.0,1882.9,0.7576]
[1743190565402,6.0599822,1883.0,1882.8,0.7576]
[1743190565819,6.0599822,1883.0,1882.5,11.08356]
[1743190565820,6.8303822,1883.0,1882.5,11.08356]
[1743190566165,12.1411522,1883.0,1882.6,5.3117]
[1743190566793,6.8303822,1883.0,1882.6,5.3117]
[1743190566992,12.1411722,1883.0,1882.6,5.3117]
[1743190568069,17.4520322,1883.0,1882.6,5.3117]
[1743190568271,12.1411722,1883.0,1882.6,5.3117]
[1743190568597,5.31162,1882.7,1882.3,6.06996]
[1743190568902,11.39371,1882.7,1882.4,5.013]
[1743190569097,6.08202,1882.7,1882.4,5.013]
[1743190570094,5.31162,1882.7,1882.4,10.32534]
[1743190570295,3.0,1882.7,1882.4,10.32517]
[1743190571102,5.3129,1882.3,1882.1,33.128]
[1743190571278,5.31304,1882.2,1881.9,5.8331]
[1743190571478,5.3133,1882.1,1881.7,0.8201]
[1743190571681,11.3732822,1882.1,1881.8,5.013]
[1743190574900,6.0599822,1882.1,1881.9,5.31373]
[1743190575100,6.0599822,1882.1,1882.0,0.7677]
[1743190575405,6.0599822,1882.5,1882.1,5.31321]
[1743190575698,6.0599822,1882.5,1882.3,5.31258]
[1743190575904,6.0599822,1882.5,1882.3,6.08648]
[1743190576610,6.0599822,1882.5,1882.3,0.7739]
[1743190577013,6.0599822,1882.5,1882.2,10.32574]
[1743190577999,6.0599822,1882.5,1882.3,5.31254]
[1743190578206,11.3712422,1882.8,1882.4,11.38861]
[1743190578411,11.3712422,1882.8,1882.4,6.0764]
[1743190578702,11.3712422,1882.8,1882.4,11.38856]
[1743190578907,3.0,1882.7,1882.4,11.38856]
[1743190579405,6.0599822,1882.8,1882.6,5.3118]
[1743190581608,6.0599822,1882.8,1882.6,10.3248]
[1743190582409,6.0599822,1882.8,1882.6,5.013]
[1743190582795,9.9139199,1882.7,1882.4,5.013]
[1743190582983,0.7925,1882.7,1882.4,5.013]
[1743190583304,5.31181,1882.6,1882.4,5.013]
[1743190583505,6.10419,1882.7,1882.4,5.013]
[1743190583808,5.31183,1882.6,1882.4,5.013]
[1743190584182,6.10429,1882.7,1882.4,5.013]
[1743190584590,5.31194,1882.6,1882.4,5.013]
[1743190585308,5.31243,1882.4,1882.0,5.31336]
[1743190585512,3.8096999,1882.3,1881.9,28.115]
[1743190585698,5.31333,1882.1,1881.7,15.64141]
[1743190585885,5.31333,1882.1,1881.7,17.287111]
[1743190586216,5.31295,1882.2,1881.8,5.31401]
[1743190586512,5.31295,1882.2,1881.7,6.658701]
[1743190586722,5.31331,1882.1,1881.7,10.32713]
[1743190587209,5.31331,1882.1,1881.7,5.013]
[1743190587528,6.06583,1882.0,1881.7,5.013]
[1743190588126,5.31386,1881.9,1881.7,5.013]
[1743190588295,5.31386,1881.9,1881.6,5.8286]
[1743190588494,5.31386,1881.9,1881.5,10.32785]
[1743190588495,16.6878422,1881.9,1881.5,10.32785]
[1743190588698,5.31408,1881.8,1881.4,6.10624]
[1743190589008,5.31408,1881.8,1881.4,11.11924]
[1743190589590,5.31437,1881.7,1881.4,5.8041]
[1743190590201,5.31408,1881.8,1881.4,11.11927]
[1743190591608,5.31408,1881.8,1881.5,5.31487]
[1743190591808,3.0,1881.8,1881.6,5.31453]
[1743190592313,3.0,1881.8,1881.5,6.958304]
[1743190592837,3.0,1881.8,1881.5,12.273194]
[1743190593013,3.0,1881.8,1881.5,6.958204]
[1743190595232,3.0,1881.8,1881.4,11.11926]
[1743190595439,8.31421,1881.8,1881.4,16.43425]
[1743190596005,8.31421,1881.8,1881.5,5.31489]
[1743190596202,3.0,1881.8,1881.5,5.31489]
[1743190596739,3.0,1881.8,1881.5,5.31478]
[1743190596939,3.0,1881.8,1881.5,10.62956]
[1743190597111,3.0,1881.8,1881.5,5.31478]
[1743190597840,6.0599822,1881.9,1881.6,5.31452]
[1743190598423,6.0599822,1881.9,1881.6,5.3145]
[1743190598624,6.0599822,1881.9,1881.7,5.31422]
[1743190598831,6.0599822,1881.9,1881.8,5.31406]
[1743190599030,6.0599822,1881.9,1881.7,0.7529]
[1743190599706,6.0599822,1881.9,1881.6,5.3145]
[1743190600034,11.3738522,1881.9,1881.5,6.14679]
[1743190600237,12.1462522,1881.9,1881.5,11.46159]
[1743190600537,12.1462522,1881.9,1881.5,7.6407389]
[1743190600738,3.0,1881.8,1881.3,11.09245]
[1743190600939,8.31425,1881.8,1881.4,5.31508]
[1743190601255,8.31425,1881.8,1881.4,5.315]
[1743190601423,8.31425,1881.8,1881.4,6.4242]
[1743190601630,3.0,1881.8,1881.5,5.31481]
[1743190601827,3.0,1881.8,1881.5,10.6296]
[1743190602145,3.0,1881.8,1881.5,10.62955]
[1743190602358,3.0,1881.8,1881.5,5.31476]
[1743190607468,3.0,1881.8,1881.4,5.31515]
[1743190607681,13.62846,1881.8,1881.5,5.015]
[1743190607886,8.31422,1881.8,1881.5,5.015]
[1743190610979,3.0,1881.8,1881.5,10.3298]
[1743190611151,3.0,1881.8,1881.6,0.14859816]
[1743190611349,8.3142,1881.8,1881.6,0.14859816]
[1743190611854,5.31434,1881.7,1881.6,0.14859816]
[1743190612054,8.3142,1881.8,1881.6,0.14859816]
[1743190612353,5.31434,1881.7,1881.6,0.14859816]
[1743190612997,8.3142,1881.8,1881.6,0.14859816]
[1743190613160,3.0,1881.8,1881.6,0.14859816]
[1743190614251,8.31409,1881.8,1881.6,0.14859816]
[1743190614452,3.0,1881.8,1881.6,0.14859816]
[1743190614659,6.8323822,1881.9,1881.6,5.46312816]
[1743190614856,6.8323822,1881.9,1881.8,5.31406]
[1743190614857,6.0599822,1881.9,1881.8,5.31406]
[1743190615274,6.0599822,1881.9,1881.8,5.43293852]
[1743190615869,6.8509822,1881.9,1881.8,0.11887852]
[1743190616390,6.8509822,1881.9,1881.8,0.12952727]
[1743190616558,6.8509822,1881.9,1881.7,14.5]
[1743190616881,6.8509822,1881.9,1881.8,0.12952727]
[1743190617661,17.4787822,1881.9,1881.6,14.5]
[1743190617866,20.4787822,1881.9,1881.8,0.12952727]
[1743190618064,20.4787822,1881.9,1881.5,11.15518]
[1743190618065,5.31406,1881.8,1881.5,5.015]
[1743190618275,14.4380599,1881.8,1881.5,5.015]
[1743190618668,14.4380499,1881.8,1881.5,5.015]
[1743190619184,5.31464,1881.6,1881.4,5.015]
[1743190619381,5.3145,1881.7,1881.4,5.015]
[1743190620364,3.0,1881.8,1881.5,5.31488]
[1743190621263,8.31406,1881.8,1881.4,11.4408]
[1743190621657,8.31406,1881.8,1881.4,16.75583]
[1743190622088,8.31406,1881.8,1881.5,5.31486]
[1743190622363,8.31406,1881.8,1881.5,6.990426]
[1743190622589,8.31406,1881.8,1881.5,21.490426]
[1743190623293,3.0,1881.8,1881.5,21.490426]
[1743190623792,3.0,1881.8,1881.5,21.490356]
[1743190624179,6.0599822,1881.9,1881.7,5.31412]
[1743190624498,6.0599822,1881.9,1881.7,11.78611624]
[1743190624665,6.0599822,1881.9,1881.8,5.44377237]
[1743190625193,6.0599822,1882.3,1882.1,5.31317]
[1743190625392,6.0599822,1882.3,1882.2,5.44208704]
[1743190625611,6.0599822,1882.3,1882.2,10.45708704]
[1743190626364,6.0599822,1882.3,1882.2,5.14415704]
[1743190626790,6.0599822,1882.3,1882.2,10.45708704]
[1743190627005,6.0599822,1882.3,1882.2,12.11322574]
[1743190629800,6.0599822,1882.3,1882.2,6.80029574]
[1743190630005,6.0599822,1882.3,1882.2,0.12915704]
[1743190630203,15.1823221,1882.3,1882.2,0.12915704]
[1743190630574,15.1823221,1882.3,1881.9,11.08947]
[1743190630774,15.1823221,1882.3,1882.0,0.12527103]
[1743190630775,20.4951721,1882.3,1882.0,0.12527103]
[1743190630975,11.3726222,1882.3,1882.0,5.43876103]
[1743190631403,11.3726222,1882.3,1882.0,0.12527103]
[1743190632374,16.76562572,1882.3,1882.0,0.12527103]
[1743190632578,4.6038999,1882.1,1882.0,0.12527103]
[1743190632780,0.7942,1882.1,1881.8,10.32791]
[1743190632979,0.7942,1882.1,1881.9,0.12527103]
[1743190633292,0.7942,1882.1,1881.8,10.32791]
[1743190633500,0.7942,1882.1,1882.0,0.12527103]
[1743190633698,0.7942,1882.1,1881.8,10.32791]
[1743190633900,0.7942,1882.1,1882.0,0.12527103]
[1743190634200,15.9785421,1882.3,1882.0,0.12527103]
[1743190634591,5.31296,1882.2,1882.0,0.12527103]
[1743190634792,5.31296,1882.2,1881.9,5.31376]
[1743190634987,5.31296,1882.2,1882.0,0.12527103]
[1743190635702,15.9785821,1882.3,1882.0,0.12527103]
[1743190635897,21.2914321,1882.3,1882.0,0.12527103]
[1743190636105,12.1688822,1882.3,1882.0,0.12527103]
[1743190636510,17.4817422,1882.3,1882.0,0.12527103]
[1743190636721,5.31294,1882.2,1882.0,0.12527103]
[1743190637084,5.31294,1882.2,1881.8,15.64197]
[1743190637285,5.31294,1882.2,1882.1,0.1236672]
[1743190637616,10.62614,1882.2,1882.1,0.1236672]
[1743190637831,5.31326,1882.1,1881.8,24.82793]
[1743190638622,5.31326,1882.1,1881.8,5.014]
[1743190638823,9.1229599,1882.1,1881.8,5.014]
[1743190639012,5.31398,1881.9,1881.4,11.38415]
[1743190639217,5.31415,1881.8,1881.5,5.013]
[1743190639930,14.4376499,1881.9,1881.5,10.32781]
[1743190640628,5.31424,1881.8,1881.5,5.013]
[1743190641338,5.31424,1881.8,1881.4,20.56894]
[1743190641534,10.629,1881.7,1881.4,14.5]
[1743190641737,11.3744622,1881.7,1881.4,19.513]
[1743190642834,16.6890322,1881.7,1881.4,5.013]
[1743190643037,6.07751,1881.4,1881.0,6.07017]
[1743190643332,6.07709,1881.6,1881.2,5.31554]
[1743190644039,3.0,1881.6,1881.3,5.31526]
[1743190644414,6.0599822,1881.7,1881.3,5.31526]
[1743190644615,6.0599822,1881.7,1881.6,5.31462]
[1743190644818,6.0599822,1882.0,1881.7,0.762]
[1743190645029,6.0599822,1882.0,1881.8,5.31403]
[1743190645541,6.0599822,1882.0,1881.9,14.5]
[1743190646135,3.0,1882.1,1881.9,19.514]
[1743190646534,0.39410592,1882.3,1881.9,13.341816]
[1743190646726,6.0599822,1882.4,1882.1,5.31305]
[1743190647553,11.3723622,1882.4,1882.0,6.07543]
[1743190647733,6.0599822,1882.4,1882.1,5.31294]
[1743190648824,6.0599822,1882.4,1882.1,10.626]
[1743190649150,6.0599822,1882.4,1882.2,1.0626]
[1743190649314,6.0599822,1882.4,1882.1,5.31294]
[1743190650047,6.0599822,1882.4,1882.3,6.09574]
[1743190650266,6.0599822,1882.4,1882.3,11.10974]
[1743190651654,6.0599822,1882.4,1882.3,5.014]
[1743190652352,6.0599822,1882.4,1882.3,10.32664]
[1743190652545,6.0599822,1882.4,1882.3,6.5832593]
[1743190652756,6.0599822,1882.4,1882.3,10.32664]
[1743190653868,6.0599822,1882.4,1882.3,11.11994]
[1743190654332,6.0599822,1882.4,1882.3,11.24749303]
[1743190654673,11.3712322,1882.8,1882.3,16.56013303]
[1743190654852,11.3712322,1882.8,1882.4,5.31228]
[1743190655027,11.3712322,1882.8,1882.4,6.9682573]
[1743190655648,6.0599822,1882.8,1882.5,5.43943303]
[1743190658081,11.3713822,1882.8,1882.5,0.12755303]
[1743190658471,11.3712322,1882.8,1882.5,5.43958303]
[1743190658674,6.0599822,1882.8,1882.5,5.43958303]
[1743190659387,11.3712322,1882.8,1882.5,5.43958303]
[1743190661988,6.0599822,1882.8,1882.5,6.68036206]
[1743190662156,6.0599822,1882.8,1882.5,11.99225206]
[1743190662456,6.0599822,1882.8,1882.6,5.31177]
[1743190662885,6.0599822,1882.8,1882.7,0.1236067]
[1743190663259,6.0599822,1882.8,1882.5,6.55279903]
[1743190663582,6.0599822,1882.8,1882.7,0.1236067]
[1743190663973,6.0599822,1882.8,1882.6,10.62333]
[1743190664180,6.0599822,1882.8,1882.7,0.11805635]
[1743190664575,11.3713522,1882.8,1882.4,13.0979373]
[1743190664759,11.3713522,1882.8,1882.7,0.11805635]
[1743190664964,11.3713522,1882.8,1882.5,5.31202]
[1743190665485,11.3713522,1882.8,1882.6,0.11805635]
[1743190665791,12.9472199,1882.7,1882.6,0.11805635]
[1743190666162,5.31192,1882.6,1882.2,10.32481]
[1743190666363,10.62391,1882.6,1882.2,5.31281]
[1743190666675,10.62391,1882.6,1882.3,5.012]
[1743190667293,5.31209,1882.5,1882.3,5.012]
[1743190668292,5.31286,1882.3,1882.1,5.012]
[1743190669106,5.31286,1882.3,1882.2,0.10602683]
[1743190670894,5.31286,1882.3,1882.0,5.012]
[1743190671091,5.31286,1882.3,1882.2,0.10886021]
[1743190671385,5.31286,1882.3,1882.0,5.012]
[1743190671595,5.70588129,1882.3,1882.0,5.012]
[1743190671969,0.39302129,1882.3,1882.1,0.10886021]
[1743190672261,11.3720722,1882.5,1882.1,12.54334023]
[1743190672489,11.3720722,1882.5,1882.1,7.23030023]
[1743190672879,16.6844322,1882.5,1882.1,7.23030023]
[1743190673094,16.6844322,1882.5,1882.1,6.18689021]
[1743190673294,5.31241,1882.4,1882.1,6.18689021]
[1743190674263,5.31241,1882.4,1882.2,14.5]
[1743190674464,5.31241,1882.4,1882.2,14.60904505]
[1743190674797,11.3721422,1882.5,1882.2,0.10904505]
[1743190675092,17.08090439,1882.5,1882.2,0.10904505]
[1743190675291,5.31238,1882.4,1882.2,0.10904505]
[1743190675497,6.13654,1882.3,1882.2,0.10904505]
[1743190675879,0.8239,1882.3,1882.2,0.10904505]
[1743190676300,5.31238,1882.4,1882.2,0.10904505]
[1743190677300,10.62493,1882.4,1882.2,0.10904505]
[1743190680205,10.6249,1882.4,1882.2,0.10904505]
[1743190680367,5.31264,1882.3,1882.2,0.10904505]
[1743190681896,5.31238,1882.4,1882.2,0.10904505]
[1743190682099,10.62501,1882.4,1882.2,0.10904505]
[1743190682298,11.76857439,1882.5,1882.2,0.10904505]
[1743190682468,11.76857439,1882.5,1882.2,6.20144505]
[1743190682900,6.0599822,1882.5,1882.2,13.16684756]
[1743190683200,6.0599822,1882.5,1882.3,5.31237]
[1743190683697,5.31146,1882.8,1882.4,6.2033688]